fUST/lending_fUST_20250723
["ID","MTS","AMOUNT","RATE_DAILY","PERIOD"]
[374145848,1753230641308,-460.0,0.00017888,2]
[374145850,1753230641317,-460.0,0.00017888,2]
[374145852,1753230641327,-562.77,0.00017888,2]
[374145855,1753230641337,-460.0,0.00017888,2]
[374145857,1753230641346,-460.0,0.00017888,2]
[374145859,1753230641355,-460.0,0.00017888,2]
[374145860,1753230641365,-488.63,0.00017888,2]
[374145862,1753230641374,-484.3587798,0.00017888,2]
[374145864,1753230641384,-460.0,0.00017888,2]
[374145866,1753230641393,-226.9329834,0.00017888,2]
[374145869,1753230641402,-460.0,0.00017888,2]
[374145871,1753230641411,-460.0,0.00017888,2]
[374145872,1753230641420,-460.0,0.00017888,2]
[374145874,1753230641429,-957.89,0.00017888,2]
[374145876,1753230641439,-460.0,0.00017888,2]
[374145878,1753230641448,-496.97,0.00017888,2]
[374145880,1753230641457,-765.74,0.00017888,2]
[374145882,1753230641466,-675.95,0.00017888,2]
[374145885,1753230641477,-460.0,0.00017888,2]
[374145887,1753230641486,-460.0,0.00017888,2]
[374145889,1753230641495,-553.2,0.00017888,2]
[374145891,1753230641505,-460.0,0.00017888,2]
[374145892,1753230641514,-493.46,0.00017888,2]
[374145894,1753230641524,-594.82,0.00017888,2]
[374145896,1753230641533,-460.0,0.00017888,2]
[374145898,1753230641542,-2193.7287128,0.000179,2]
[374145900,1753230641552,-500.0,0.00017921,2]
[374145902,1753230641562,-460.0,0.00018159,2]
[374145904,1753230641571,-460.0,0.00018159,2]
[374145906,1753230641581,-460.0,0.00018159,2]
[374145908,1753230641590,-460.0,0.00018159,2]
[374145910,1753230641599,-460.0,0.00018159,2]
[374145912,1753230641609,-460.0,0.00018159,2]
[374145914,1753230641623,-460.0,0.00018159,2]
[374145916,1753230641633,-460.0,0.00018159,2]
[374145918,1753230641643,-460.0,0.00018159,2]
[374145920,1753230641653,-460.0,0.00018159,2]
[374145922,1753230641663,-460.0,0.00018159,2]
[374145924,1753230641673,-460.0,0.00018159,2]
[374145926,1753230641683,-2207.14,0.0001816,2]
[374145928,1753230641693,-460.0,0.0001816,2]
[374145930,1753230641703,-1108.85,0.0001816,2]
[374145933,1753230641713,-1418.6,0.0001816,2]
[374145934,1753230641723,-460.0,0.0001816,2]
[374145937,1753230641732,-675.85,0.0001816,2]
[374145938,1753230641742,-1618.02,0.0001816,2]
[374145941,1753230641752,-460.0,0.00018162,2]
[374145943,1753230641762,-2588.23,0.00018162,2]
[374145945,1753230641771,-460.0,0.00018162,2]
[374145947,1753230641781,-817.66,0.00018162,2]
[374145949,1753230641791,-460.0,0.00018162,2]
[374145951,1753230641800,-411.74295006,0.00018162,2]
[374145953,1753230641810,-460.0,0.00018162,2]
[374145955,1753230641820,-460.0,0.00018162,2]
[374145957,1753230641829,-460.0,0.00018162,2]
[374145959,1753230641838,-460.0,0.00018162,2]
[374145961,1753230641848,-562.77,0.00018162,2]
[374145963,1753230641857,-460.0,0.00018162,2]
[374145965,1753230641869,-460.0,0.00018162,2]
[374145967,1753230641879,-460.0,0.00018162,2]
[374145969,1753230641888,-488.63,0.00018162,2]
[374145971,1753230641898,-460.0,0.00018162,2]
[374145973,1753230641907,-460.0,0.00018162,2]
[374145975,1753230641916,-460.0,0.00018162,2]
[374145977,1753230641925,-561.56,0.00018162,2]
[374145979,1753230641935,-957.89,0.00018162,2]
[374145981,1753230641944,-460.0,0.00018162,2]
[374145983,1753230641953,-765.74,0.00018162,2]
[374145985,1753230641963,-496.97,0.00018162,2]
[374145987,1753230641972,-675.95,0.00018162,2]
[374145989,1753230641982,-460.0,0.00018162,2]
[374145991,1753230641991,-460.0,0.00018162,2]
[374145992,1753230642001,-460.0,0.00018162,2]
[374145995,1753230642011,-493.46,0.00018162,2]
[374145996,1753230642020,-594.82,0.00018162,2]
[374145998,1753230642029,-594.26,0.00018162,2]
[374146001,1753230642039,-2193.72871273,0.00018176,2]
[374146003,1753230642048,-420.0,0.0001834,2]
[374146004,1753230642057,-460.0,0.00018433,2]
[374146006,1753230642066,-329.86277293,0.00018433,2]
[374146008,1753230642076,-460.0,0.00018433,2]
[374146010,1753230642086,-460.0,0.00018433,2]
[374146012,1753230642095,-460.0,0.00018433,2]
[374146014,1753230642105,-460.0,0.00018433,2]
[374146016,1753230642115,-460.0,0.00018433,2]
[374146018,1753230642124,-460.0,0.00018433,2]
[374146020,1753230642133,-460.0,0.00018433,2]
[374146022,1753230642143,-460.0,0.00018433,2]
[374146024,1753230642152,-2207.14,0.00018434,2]
[374146026,1753230642161,-460.0,0.00018434,2]
[374146028,1753230642170,-1108.85,0.00018434,2]
[374146030,1753230642180,-1418.6,0.00018434,2]
[374146032,1753230642189,-460.0,0.00018434,2]
[374146033,1753230642199,-675.85,0.00018434,2]
[374146035,1753230642208,-1618.02,0.00018434,2]
[374146037,1753230642218,-460.0,0.00018436,2]
[374146039,1753230642227,-2588.23,0.00018436,2]
[374146041,1753230642237,-460.0,0.00018436,2]
[374146043,1753230642246,-817.66,0.00018436,2]
[374146045,1753230642256,-460.0,0.00018436,2]
[374146047,1753230642266,-460.0,0.00018436,2]
[374146049,1753230642276,-460.0,0.00018436,2]
[374146051,1753230642286,-460.0,0.00018436,2]
[374146053,1753230642296,-460.0,0.00018436,2]
[374146055,1753230642307,-562.77,0.00018436,2]
[374146057,1753230642317,-460.0,0.00018436,2]
[374146058,1753230642328,-460.0,0.00018436,2]
[374146061,1753230642342,-460.0,0.00018436,2]
[374146062,1753230642352,-488.63,0.00018436,2]
[374146065,1753230642362,-460.0,0.00018436,2]
[374146066,1753230642375,-460.0,0.00018436,2]
[374146068,1753230642385,-957.89,0.00018436,2]
[374146071,1753230642395,-460.0,0.00018436,2]
[374146073,1753230642405,-765.74,0.00018436,2]
[374146075,1753230642414,-496.97,0.00018436,2]
[374146077,1753230642424,-675.95,0.00018436,2]
[374146078,1753230642434,-460.0,0.00018436,2]
[374146081,1753230642444,-460.0,0.00018436,2]
[374146083,1753230642453,-460.0,0.00018436,2]
[374146084,1753230642463,-493.46,0.00018436,2]
[374146086,1753230642473,-594.82,0.00018436,2]
[374146088,1753230642483,-2193.72871273,0.00018452,2]
[374146090,1753230642494,-173.93945779,0.00018707,2]
[374146092,1753230642503,-333.06,0.00018707,2]
[374146094,1753230642512,-460.0,0.00018707,2]
[374146096,1753230642522,-460.0,0.00018707,2]
[374146098,1753230642531,-460.0,0.00018707,2]
[374146100,1753230642541,-460.0,0.00018707,2]
[374146102,1753230642550,-460.0,0.00018707,2]
[374146104,1753230642559,-460.0,0.00018707,2]
[374146106,1753230642568,-460.0,0.00018707,2]
[374146108,1753230642578,-460.0,0.00018707,2]
[374146110,1753230642587,-2207.14,0.00018708,2]
[374146112,1753230642596,-460.0,0.00018708,2]
[374146114,1753230642606,-1108.85,0.00018708,2]
[374146116,1753230642617,-1418.6,0.00018708,2]
[374146118,1753230642626,-460.0,0.00018708,2]
[374146120,1753230642636,-675.85,0.00018708,2]
[374146122,1753230642646,-1618.02,0.00018708,2]
[374146124,1753230642656,-460.0,0.0001871,2]
[374146126,1753230642665,-2588.23,0.0001871,2]
[374146128,1753230642675,-218.59354077,0.0001871,2]
[374146130,1753230642684,-817.66,0.0001871,2]
[374146132,1753230642694,-460.0,0.0001871,2]
[374146134,1753230642703,-460.0,0.0001871,2]
[374146136,1753230642712,-460.0,0.0001871,2]
[374146137,1753230642722,-460.0,0.0001871,2]
[374146139,1753230642731,-460.0,0.0001871,2]
[374146141,1753230642740,-562.77,0.0001871,2]
[374146143,1753230642749,-460.0,0.0001871,2]
[374146145,1753230642758,-460.0,0.0001871,2]
[374146147,1753230642767,-488.63,0.0001871,2]
[374146149,1753230642776,-460.0,0.0001871,2]
[374146151,1753230642786,-460.0,0.0001871,2]
[374146153,1753230642795,-460.0,0.0001871,2]
[374146155,1753230642804,-957.89,0.0001871,2]
[374146157,1753230642814,-460.0,0.0001871,2]
[374146159,1753230642823,-765.74,0.0001871,2]
[374146161,1753230642833,-496.97,0.0001871,2]
[374146163,1753230642843,-675.95,0.0001871,2]
[374146165,1753230642852,-460.0,0.0001871,2]
[374146167,1753230642861,-460.0,0.0001871,2]
[374146169,1753230642873,-460.0,0.0001871,2]
[374146171,1753230642882,-493.46,0.0001871,2]
[374146173,1753230642892,-594.82,0.0001871,2]
[374146175,1753230642901,-2193.72871273,0.00018728,2]
[374146177,1753230642911,-160.0,0.00018736,2]
[374146179,1753230642919,-12619.94447631,0.00018887,2]
[374146181,1753230642929,-215.80012421,0.00018887,2]
[374146183,1753230642938,-476.60259688,0.00018887,2]
[374146185,1753230642947,-214.6393183,0.00018887,2]
[374146187,1753230642956,-160.0,0.00018888,2]
[374146189,1753230642965,-2104.17768711,0.000189,2]
[374146191,1753230642974,-460.0,0.00018981,2]
[374146193,1753230642983,-460.0,0.00018981,2]
[374146195,1753230642993,-460.0,0.00018981,2]
[374146197,1753230643003,-460.0,0.00018981,2]
[374146199,1753230643013,-460.0,0.00018981,2]
[374146201,1753230643022,-460.0,0.00018981,2]
[374146203,1753230643032,-460.0,0.00018981,2]
[374146205,1753230643041,-2207.14,0.00018982,2]
[374146207,1753230643050,-460.0,0.00018982,2]
[374146209,1753230643059,-1108.85,0.00018982,2]
[374146211,1753230643068,-1418.6,0.00018982,2]
[374146213,1753230643078,-460.0,0.00018982,2]
[374146215,1753230643087,-675.85,0.00018982,2]
[374146217,1753230643096,-1618.02,0.00018982,2]
[374146219,1753230643105,-460.0,0.00018984,2]
[374146237,1753230643207,-2588.23,0.00018984,2]
[374146239,1753230643217,-817.66,0.00018984,2]
[374146241,1753230643226,-460.0,0.00018984,2]
[374146243,1753230643235,-460.0,0.00018984,2]
[374146245,1753230643244,-460.0,0.00018984,2]
[374146246,1753230643253,-460.0,0.00018984,2]
[374146248,1753230643262,-460.0,0.00018984,2]
[374146250,1753230643272,-562.77,0.00018984,2]
[374146253,1753230643281,-460.0,0.00018984,2]
[374146255,1753230643290,-460.0,0.00018984,2]
[374146257,1753230643299,-488.63,0.00018984,2]
[374146259,1753230643309,-460.0,0.00018984,2]
[374146261,1753230643318,-460.0,0.00018984,2]
[374146263,1753230643327,-479.24,0.00018984,2]
[374146265,1753230643337,-957.89,0.00018984,2]
[374146266,1753230643346,-460.0,0.00018984,2]
[374146268,1753230643356,-765.74,0.00018984,2]
[374146270,1753230643366,-496.97,0.00018984,2]
[374146272,1753230643378,-675.95,0.00018984,2]
[374146274,1753230643387,-460.0,0.00018984,2]
[374146276,1753230643396,-460.0,0.00018984,2]
[374146278,1753230643405,-460.0,0.00018984,2]
[374146280,1753230643415,-493.46,0.00018984,2]
[374146282,1753230643424,-594.82,0.00018984,2]
[374146284,1753230643433,-2193.72871273,0.00019003,2]
[374146286,1753230643443,-1615.17425228,0.00019156,2]
[374146288,1753230643459,-666.0,0.00019178,2]
[374146290,1753230643470,-632.1316733,0.00019178,2]
[374146292,1753230643479,-190.657243,0.00019178,2]
[374146294,1753230643489,-460.0,0.00019255,2]
[374146296,1753230643498,-460.0,0.00019255,2]
[374146298,1753230643506,-460.0,0.00019255,2]
[374146300,1753230643516,-467.36,0.00019255,2]
[374146302,1753230643525,-460.0,0.00019255,2]
[374146304,1753230643534,-460.0,0.00019255,2]
[374146306,1753230643543,-2207.14,0.00019256,2]
[374146308,1753230643552,-460.0,0.00019256,2]
[374146310,1753230643561,-1108.85,0.00019256,2]
[374146312,1753230643571,-1418.6,0.00019256,2]
[374146314,1753230643580,-460.0,0.00019256,2]
[374146316,1753230643589,-675.85,0.00019256,2]
[374146318,1753230643599,-1618.02,0.00019256,2]
[374146320,1753230643608,-460.0,0.00019258,2]
[374146322,1753230643623,-2588.23,0.00019258,2]
[374146324,1753230643632,-817.66,0.00019258,2]
[374146326,1753230643641,-460.0,0.00019258,2]
[374146328,1753230643650,-460.0,0.00019258,2]
[374146330,1753230643660,-460.0,0.00019258,2]
[374146332,1753230643669,-439.77,0.00019258,2]
[374146334,1753230643678,-460.0,0.00019258,2]
[374146336,1753230643687,-562.77,0.00019258,2]
[374146338,1753230643696,-460.0,0.00019258,2]
[374146339,1753230643705,-460.0,0.00019258,2]
[374146342,1753230643715,-488.63,0.00019258,2]
[374146343,1753230643724,-460.0,0.00019258,2]
[374146345,1753230643734,-460.0,0.00019258,2]
[374146347,1753230643744,-957.89,0.00019258,2]
[374146350,1753230643754,-460.0,0.00019258,2]
[374146351,1753230643763,-765.74,0.00019258,2]
[374146353,1753230643773,-496.97,0.00019258,2]
[374146355,1753230643783,-675.95,0.00019258,2]
[374146358,1753230643792,-460.0,0.00019258,2]
[374146360,1753230643803,-460.0,0.00019258,2]
[374146361,1753230643812,-460.0,0.00019258,2]
[374146363,1753230643822,-493.46,0.00019258,2]
[374146365,1753230643831,-594.82,0.00019258,2]
[374146367,1753230643840,-2193.72871273,0.00019279,2]
[374146369,1753230643850,-260.0,0.00019284,2]
[374146371,1753230643860,-1048.48344294,0.00019432,2]
[374146373,1753230643871,-460.0,0.00019529,2]
[374146376,1753230643881,-460.0,0.00019529,2]
[374146378,1753230643891,-460.0,0.00019529,2]
[374146379,1753230643900,-460.0,0.00019529,2]
[374146381,1753230643909,-460.0,0.00019529,2]
[374146383,1753230643919,-2207.14,0.0001953,2]
[374146385,1753230643928,-460.0,0.0001953,2]
[374146387,1753230643937,-1108.85,0.0001953,2]
[374146389,1753230643946,-1418.6,0.0001953,2]
[374146391,1753230643955,-460.0,0.0001953,2]
[374146393,1753230643964,-675.85,0.0001953,2]
[374146395,1753230643973,-1618.02,0.0001953,2]
[374146397,1753230643983,-2588.23,0.00019532,2]
[374146399,1753230643992,-817.66,0.00019532,2]
[374146401,1753230644001,-460.0,0.00019532,2]
[374146403,1753230644010,-460.0,0.00019532,2]
[374146405,1753230644019,-460.0,0.00019532,2]
[374146407,1753230644029,-194.07,0.00019532,2]
[374146409,1753230644038,-562.77,0.00019532,2]
[374146411,1753230644047,-460.0,0.00019532,2]
[374146413,1753230644056,-460.0,0.00019532,2]
[374146415,1753230644066,-571.86,0.00019532,2]
[374146417,1753230644076,-488.63,0.00019532,2]
[374146419,1753230644085,-460.0,0.00019532,2]
[374146421,1753230644095,-957.89,0.00019532,2]
[374146423,1753230644104,-281.07,0.00019532,2]
[374146425,1753230644117,-496.97,0.00019532,2]
[374146427,1753230644126,-765.74,0.00019532,2]
[374146429,1753230644135,-675.95,0.00019532,2]
[374146431,1753230644145,-460.0,0.00019532,2]
[374146433,1753230644154,-460.0,0.00019532,2]
[374146435,1753230644163,-520.2,0.00019532,2]
[374146437,1753230644172,-493.46,0.00019532,2]
[374146439,1753230644181,-594.82,0.00019532,2]
[374146441,1753230644191,-2193.72871273,0.00019555,2]
[374146443,1753230644200,-460.0,0.00019803,2]
[374146445,1753230644209,-460.0,0.00019803,2]
[374146447,1753230644219,-460.0,0.00019803,2]
[374146449,1753230644228,-460.0,0.00019803,2]
[374146451,1753230644237,-460.0,0.00019803,2]
[374146453,1753230644247,-2207.14,0.00019804,2]
[374146455,1753230644255,-460.0,0.00019804,2]
[374146457,1753230644264,-1108.85,0.00019804,2]
[374146459,1753230644274,-1418.6,0.00019804,2]
[374146461,1753230644283,-381.21,0.00019804,2]
[374146463,1753230644292,-675.85,0.00019804,2]
[374146464,1753230644301,-1618.02,0.00019804,2]
[374146466,1753230644310,-2588.23,0.00019806,2]
[374146468,1753230644319,-817.66,0.00019806,2]
[374146470,1753230644328,-460.0,0.00019806,2]
[374146472,1753230644337,-254.17,0.00019806,2]
[374146476,1753230644357,-460.0,0.00019806,2]
[374146478,1753230644366,-562.77,0.00019806,2]
[374146480,1753230644377,-460.0,0.00019806,2]
[374146481,1753230644386,-460.0,0.00019806,2]
[374146483,1753230644396,-488.63,0.00019806,2]
[374146486,1753230644406,-460.0,0.00019806,2]
[374146488,1753230644416,-957.89,0.00019806,2]
[374146490,1753230644425,-496.97,0.00019806,2]
[374146492,1753230644435,-765.74,0.00019806,2]
[374146494,1753230644445,-675.95,0.00019806,2]
[374146496,1753230644455,-460.0,0.00019806,2]
[374146497,1753230644464,-395.66,0.00019806,2]
[374146500,1753230644476,-493.46,0.00019806,2]
[374146502,1753230644485,-594.82,0.00019806,2]
[374146504,1753230644495,-2193.72871273,0.00019831,2]
[374146506,1753230644504,-240.0,0.00019832,2]
[374146508,1753230644514,-6927.78568918,0.0002,2]
[374146510,1753230644524,-14350.5243845,0.0002,2]
[374146512,1753230644533,-3195.40999342,0.0002,2]
[374146513,1753230644543,-362.82157621,0.0002,2]
[374146515,1753230644552,-47340.97896948,0.0002,2]
[374146517,1753230644562,-587.0,0.00020036,2]
[374146519,1753230644571,-460.0,0.00020077,2]
[374146521,1753230644581,-460.0,0.00020077,2]
[374146523,1753230644591,-203.2,0.00020077,2]
[374146526,1753230644600,-460.0,0.00020077,2]
[374146528,1753230644610,-460.0,0.00020077,2]
[374146529,1753230644626,-2207.14,0.00020078,2]
[374146531,1753230644636,-460.0,0.00020078,2]
[374146533,1753230644646,-1108.85,0.00020078,2]
[374146536,1753230644655,-1418.6,0.00020078,2]
[374146537,1753230644665,-675.85,0.00020078,2]
[374146539,1753230644675,-1618.02,0.00020078,2]
[374146541,1753230644684,-2588.23,0.0002008,2]
[374146543,1753230644694,-817.66,0.0002008,2]
[374146546,1753230644704,-460.0,0.0002008,2]
[374146547,1753230644714,-609.56,0.0002008,2]
[374146549,1753230644723,-460.0,0.0002008,2]
[374146550,1753230644733,-562.77,0.0002008,2]
[374146551,1753230644743,-460.0,0.0002008,2]
[374146552,1753230644753,-488.63,0.0002008,2]
[374146553,1753230644763,-346.83,0.0002008,2]
[374146554,1753230644773,-957.89,0.0002008,2]
[374146555,1753230644782,-496.97,0.0002008,2]
[374146556,1753230644791,-765.74,0.0002008,2]
[374146557,1753230644800,-675.95,0.0002008,2]
[374146558,1753230644810,-460.0,0.0002008,2]
[374146559,1753230644819,-493.46,0.0002008,2]
[374146560,1753230644829,-594.82,0.0002008,2]
[374146561,1753230644839,-2193.72871273,0.00020107,2]
[374146562,1753230644849,-571.767531,0.00020187,2]
[374146563,1753230644858,-1000.0,0.00020296,2]
[374146564,1753230644867,-1000.0,0.00020326,2]
[374146565,1753230644879,-460.0,0.00020351,2]
[374146566,1753230644889,-460.0,0.00020351,2]
[374146567,1753230644899,-460.0,0.00020351,2]
[374146568,1753230644908,-460.0,0.00020351,2]
[374146569,1753230644918,-2207.14,0.00020352,2]
[374146570,1753230644927,-460.0,0.00020352,2]
[374146571,1753230644936,-1108.85,0.00020352,2]
[374146572,1753230644946,-1418.6,0.00020352,2]
[374146573,1753230644955,-675.85,0.00020352,2]
[374146574,1753230644965,-1618.02,0.00020352,2]
[374146575,1753230644974,-2588.23,0.00020354,2]
[374146577,1753230644983,-817.66,0.00020354,2]
[374146579,1753230644993,-460.0,0.00020354,2]
[374146580,1753230645002,-360.62,0.00020354,2]
[374146582,1753230645012,-562.77,0.00020354,2]
[374146584,1753230645021,-460.0,0.00020354,2]
[374146587,1753230645031,-488.63,0.00020354,2]
[374146588,1753230645041,-957.89,0.00020354,2]
[374146590,1753230645050,-496.97,0.00020354,2]
[374146592,1753230645059,-765.74,0.00020354,2]
[374146594,1753230645069,-675.95,0.00020354,2]
[374146596,1753230645078,-460.0,0.00020354,2]
[374146598,1753230645087,-493.46,0.00020354,2]
[374146600,1753230645097,-594.82,0.00020354,2]
[374146602,1753230645106,-2193.72871273,0.00020383,3]
[374146604,1753230645115,-1000.0,0.00020389,2]
[374146606,1753230645127,-1000.0,0.00020421,2]
[374146608,1753230645136,-620.4,0.00020446,2]
[374146610,1753230645145,-2000.0,0.00020468,2]
[374146612,1753230645154,-9297.13174675,0.000205,2]
[374146614,1753230645164,-2000.0,0.00020582,2]
[374146616,1753230645173,-558.537,0.00020612,2]
[374146618,1753230645183,-460.0,0.00020625,2]
[374146620,1753230645193,-460.0,0.00020625,2]
[374146622,1753230645201,-460.0,0.00020625,2]
[374146624,1753230645211,-460.0,0.00020625,2]
[374146626,1753230645224,-2207.14,0.00020626,2]
[374146628,1753230645234,-460.0,0.00020626,2]
[374146630,1753230645243,-1108.85,0.00020626,2]
[374146632,1753230645252,-1418.6,0.00020626,2]
[374146634,1753230645262,-675.85,0.00020626,2]
[374146636,1753230645271,-1618.02,0.00020626,2]
[374146638,1753230645280,-1615.17425225,0.00020626,2]
[374146640,1753230645290,-2588.23,0.00020628,2]
[374146642,1753230645299,-817.66,0.00020628,2]
[374146644,1753230645308,-588.38707441,0.00020628,2]
[374146646,1753230645318,-562.77,0.00020628,2]
[374146648,1753230645327,-460.0,0.00020628,2]
[374146650,1753230645337,-488.63,0.00020628,2]
[374146652,1753230645346,-957.89,0.00020628,2]
[374146654,1753230645355,-496.97,0.00020628,2]
[374146656,1753230645364,-765.74,0.00020628,2]
[374146658,1753230645375,-675.95,0.00020628,2]
[374146660,1753230645385,-460.0,0.00020628,2]
[374146662,1753230645395,-493.46,0.00020628,2]
[374146664,1753230645404,-594.82,0.00020628,2]
[374146666,1753230645414,-5000.0,0.00020636,2]
[374146668,1753230645423,-2193.72871273,0.00020659,3]
[374146670,1753230645432,-2000.0,0.00020696,3]
[374146672,1753230645442,-2000.0,0.00020728,3]
[374146674,1753230645451,-2000.0,0.00020782,3]
[374146676,1753230645460,-214.6393183,0.00020782,3]
[374146678,1753230645470,-475.90439971,0.0002079,3]
[374146680,1753230645479,-2000.0,0.00020826,3]
[374146682,1753230645488,-2179.55,0.00020868,3]
[374146684,1753230645498,-460.0,0.00020899,2]
[374146686,1753230645507,-460.0,0.00020899,2]
[374146688,1753230645516,-605.86821254,0.00020899,2]
[374146689,1753230645525,-460.0,0.00020899,2]
[374146691,1753230645535,-2207.14,0.000209,2]
[374146693,1753230645544,-460.0,0.000209,2]
[374146695,1753230645554,-1108.85,0.000209,2]
[374146697,1753230645563,-1003.48,0.000209,2]
[374146699,1753230645573,-1418.6,0.000209,2]
[374146701,1753230645582,-675.85,0.000209,2]
[374146703,1753230645591,-1618.02,0.000209,2]
[374146705,1753230645600,-2588.23,0.00020902,2]
[374146707,1753230645610,-817.66,0.00020902,2]
[374146709,1753230645627,-562.77,0.00020902,2]
[374146711,1753230645636,-460.0,0.00020902,2]
[374146713,1753230645646,-488.63,0.00020902,2]
[374146726,1753230645762,-957.89,0.00020902,2]
[374146728,1753230645772,-496.97,0.00020902,2]
[374146730,1753230645781,-765.74,0.00020902,2]
[374146732,1753230645791,-675.95,0.00020902,2]
[374146734,1753230645799,-460.0,0.00020902,2]
[374146736,1753230645808,-493.46,0.00020902,2]
[374146738,1753230645817,-594.82,0.00020902,2]
[374146740,1753230645827,-2193.72871273,0.00020934,4]
[374146742,1753230645835,-500.0,0.00020971,2]
[374146744,1753230645845,-500.0,0.00020971,2]
[374146746,1753230645854,-598.23,0.00021173,2]
[374146748,1753230645863,-460.0,0.00021173,2]
[374146750,1753230645875,-326.18559762,0.00021173,2]
[374146752,1753230645884,-2207.14,0.00021174,2]
[374146754,1753230645893,-460.0,0.00021174,2]
[374146756,1753230645902,-1108.85,0.00021174,2]
[374146758,1753230645912,-1418.6,0.00021174,2]
[374146760,1753230645921,-675.85,0.00021174,2]
[374146762,1753230645930,-1618.02,0.00021174,2]
[374146764,1753230645939,-2588.23,0.00021176,2]
[374146766,1753230645948,-817.66,0.00021176,2]
[374146768,1753230645956,-562.77,0.00021176,2]
[374146769,1753230645965,-460.0,0.00021176,2]
[374146771,1753230645975,-488.63,0.00021176,2]
[374146773,1753230645984,-957.89,0.00021176,2]
[374146775,1753230645993,-496.97,0.00021176,2]
[374146777,1753230646002,-765.74,0.00021176,2]
[374146779,1753230646012,-675.95,0.00021176,2]
[374146781,1753230646021,-216.9,0.00021176,2]
[374146783,1753230646030,-493.46,0.00021176,2]
[374146785,1753230646040,-594.82,0.00021176,2]
[374146787,1753230646049,-2193.72871273,0.0002121,4]
[374146789,1753230646058,-460.0,0.00021447,2]
[374146791,1753230646067,-2207.14,0.00021448,2]
[374146793,1753230646076,-460.0,0.00021448,2]
[374146795,1753230646086,-1108.85,0.00021448,2]
[374146797,1753230646095,-1418.6,0.00021448,2]
[374146799,1753230646104,-675.85,0.00021448,2]
[374146801,1753230646114,-2588.23,0.0002145,2]
[374146803,1753230646125,-817.66,0.0002145,2]
[374146805,1753230646134,-562.77,0.0002145,2]
[374146807,1753230646143,-460.0,0.0002145,2]
[374146809,1753230646153,-488.63,0.0002145,2]
[374146811,1753230646162,-957.89,0.0002145,2]
[374146813,1753230646171,-496.97,0.0002145,2]
[374146815,1753230646180,-765.74,0.0002145,2]
[374146817,1753230646190,-675.95,0.0002145,2]
[374146819,1753230646199,-493.46,0.0002145,2]
[374146821,1753230646209,-594.82,0.0002145,2]
[374146823,1753230646219,-2193.72871273,0.00021486,5]
[374146825,1753230646228,-500.0,0.000215,2]
[374146827,1753230646238,-500.0,0.000215,2]
[374146829,1753230646247,-500.44268166,0.000215,2]
[374146831,1753230646256,-500.0,0.000215,2]
[374146833,1753230646265,-503.27154105,0.00021519,2]
[374146835,1753230646275,-1000.0,0.00021519,2]
[374146837,1753230646283,-153.214224,0.00021644,2]
[374146839,1753230646293,-500.0,0.00021721,2]